bitfinex/quotes_ETHUSD_20251125
["timestamp","ask_amount","ask_price","bid_price","bid_amount"]
[1764083467114,3.45721694,2892.5,2890.9,6.91924191]
[1764083467268,0.4918,2892.4,2891.0,0.95859411]
[1764083467470,3.66754134,2892.1,2890.9,0.001]
[1764083467671,0.4918,2892.4,2890.9,0.001]
[1764083467897,0.4918,2892.3,2890.9,0.72659411]
[1764083468100,0.4918,2892.3,2891.0,0.0345901]
[1764083468302,4.15934134,2892.3,2890.9,0.001]
[1764083468488,0.4918,2892.3,2890.9,0.001]
[1764083468817,0.4918,2892.2,2890.9,0.001]
[1764083469507,0.1979,2891.0,2890.9,0.001]
[1764083469669,3.66754134,2891.8,2890.9,0.001]
[1764083470107,0.4918,2891.8,2890.9,0.001]
[1764083470482,0.4918,2891.8,2890.9,0.234]
[1764083470881,0.4918,2891.8,2890.9,0.001]
[1764083472191,0.491,2891.8,2890.9,0.001]
[1764083472508,3.94909648,2891.8,2890.9,0.001]
[1764083472875,10.5837343,2891.8,2890.9,0.001]
[1764083473106,0.233,2892.0,2890.9,0.001]
[1764083473375,3.69081466,2892.0,2890.9,0.001]
[1764083473582,3.69081879,2892.0,2890.9,0.001]
[1764083474089,0.233,2892.0,2890.9,0.001]
[1764083474285,0.4918,2891.9,2890.9,0.001]
[1764083474598,0.4907,2891.9,2890.9,0.001]
[1764083475323,10.37452017,2891.7,2890.9,0.001]
[1764083475826,6.91634678,2891.7,2890.9,0.001]
[1764083476107,3.65596388,2891.8,2890.9,0.001]
[1764083476626,0.4918,2891.7,2890.9,0.001]
[1764083477319,3.66754134,2891.3,2890.9,0.001]
[1764083477610,3.66754134,2891.3,2890.6,0.001]
[1764083477611,0.7248,2891.2,2890.6,0.001]
[1764083477822,0.7248,2891.2,2890.3,0.001]
[1764083477823,0.405504,2890.6,2890.3,0.001]
[1764083478022,0.233,2890.5,2888.7,3.46174734]
[1764083478177,3.66754134,2890.3,2888.7,3.46174734]
[1764083478576,3.66754134,2890.3,2888.4,0.1011]
[1764083478577,0.4918,2890.2,2888.4,0.1011]
[1764083478872,0.4918,2890.2,2887.7,6.9259272]
[1764083478873,0.405504,2889.7,2887.7,6.9259272]
[1764083479077,1.21739411,2890.2,2887.7,3.4629636]
[1764083479078,3.66754134,2889.3,2887.7,3.4629636]
[1764083479278,0.405504,2889.0,2886.8,0.18093917]
[1764083479509,0.4309,2889.6,2885.3,3.56682833]
[1764083479510,0.4918,2889.2,2887.4,0.4936]
[1764083479709,0.233,2889.3,2887.5,0.95859411]
[1764083480023,0.4918,2889.5,2887.4,0.4936]
[1764083480024,0.4918,2889.5,2887.6,0.233]
[1764083480224,0.469,2889.4,2887.4,0.4936]
[1764083480584,0.469,2889.4,2887.5,0.233]
[1764083480937,0.469,2889.4,2887.6,0.233]
[1764083481277,7.12870706,2889.2,2886.9,4.12002323]
[1764083481633,0.405504,2888.6,2886.6,3.46417676]
[1764083481918,0.233,2888.5,2886.6,7.16145999]
[1764083482078,0.233,2888.5,2886.6,3.46417676]
[1764083482273,0.469,2888.4,2886.6,6.92845999]
[1764083482722,0.1842,2888.3,2886.6,6.92845999]
[1764083482921,0.1842,2888.3,2886.7,0.72559411]
[1764083483124,4.54204534,2888.2,2886.6,3.46417676]
[1764083483276,3.46248398,2888.1,2886.7,0.72559411]
[1764083483489,0.233,2888.0,2886.7,0.72559411]
[1764083483691,0.469,2887.9,2886.3,6.92928662]
[1764083483902,0.233,2888.0,2886.6,2.43928]
[1764083484103,0.233,2888.0,2886.6,0.4741]
[1764083484399,0.1842,2888.3,2886.7,0.4741]
[1764083484797,0.6532,2888.3,2886.7,0.4741]
[1764083485022,4.11554323,2888.3,2886.8,0.233]
[1764083485224,3.93141671,2888.2,2887.0,0.72559411]
[1764083485526,0.233,2888.4,2887.0,0.72559411]
[1764083485830,0.469,2888.3,2887.1,0.03463683]
[1764083485998,0.1842,2888.6,2887.2,0.405504]
[1764083486196,0.1842,2888.9,2887.1,0.4741]
[1764083486401,0.469,2888.7,2887.2,0.233]
[1764083486620,0.469,2888.7,2887.3,0.4741]
[1764083486820,3.64575794,2888.9,2887.3,0.4741]
[1764083487023,0.469,2888.7,2887.3,0.7071]
[1764083487221,0.702,2888.7,2887.5,0.72559411]
[1764083487730,0.469,2888.6,2887.5,0.72559411]
[1764083488231,0.469,2888.6,2887.4,6.9266468]
[1764083488794,0.1842,2888.9,2887.4,6.9266468]
[1764083488795,3.87772697,2888.9,2887.4,10.3899702]
[1764083488993,0.469,2888.8,2887.4,10.3899702]
[1764083489193,0.469,2888.8,2887.4,6.9266468]
[1764083489429,3.4617648,2888.7,2887.4,6.9266468]
[1764083489631,6.9235296,2888.7,2887.4,6.9266468]
[1764083489845,0.469,2888.6,2887.0,3.46380325]
[1764083490028,0.469,2888.6,2886.9,0.232]
[1764083490225,4.07304534,2888.5,2886.8,0.232]
[1764083490708,0.405504,2888.3,2886.8,0.232]
[1764083490906,0.701,2888.4,2886.8,0.232]
[1764083491119,0.469,2888.3,2886.8,0.232]
[1764083491331,6.9247282,2888.2,2887.0,3.46380325]
[1764083491511,3.4623641,2888.2,2887.0,6.9276065]
[1764083491706,3.4623641,2888.2,2887.0,3.46380325]
[1764083491707,0.469,2888.1,2887.0,3.46380325]
[1764083492036,0.469,2888.1,2886.7,3.46416323]
[1764083492239,0.469,2888.1,2886.6,0.001]
[1764083492240,0.405504,2888.0,2886.6,0.001]
[1764083492425,0.232,2887.9,2886.6,6.92956271]
[1764083492844,0.469,2887.8,2886.6,10.39384594]
[1764083493138,0.469,2887.8,2886.6,0.001]
[1764083493339,3.4629636,2887.7,2886.6,0.001]
[1764083493540,10.3888908,2887.7,2886.6,0.001]
[1764083493755,0.469,2887.6,2886.6,0.001]
[1764083493907,0.1842,2886.7,2886.6,0.001]
[1764083494735,0.6532,2886.7,2886.6,0.001]
[1764083494934,0.6532,2886.7,2886.4,0.001]
[1764083495273,4.69072692,2886.6,2885.2,0.001]
[1764083495415,4.059504,2886.4,2885.2,0.001]
[1764083495748,0.469,2886.3,2885.2,0.001]
[1764083496140,0.404704,2886.2,2885.2,0.001]
[1764083496451,6.750794,2886.0,2885.2,0.001]
[1764083496610,0.469,2886.1,2885.2,0.001]
[1764083496811,1.03672692,2886.0,2885.2,0.001]
[1764083497034,0.72559411,2885.8,2885.2,0.001]
[1764083497235,0.72559411,2885.8,2883.8,0.1706]
[1764083497236,0.56772692,2885.7,2883.8,0.1706]
[1764083497439,0.1842,2885.0,2883.8,3.63822203]
[1764083497622,0.469,2885.7,2884.3,0.185]
[1764083498433,3.93436368,2885.7,2884.3,0.185]
[1764083498646,7.39973129,2885.7,2884.3,0.185]
[1764083498948,0.469,2885.6,2884.3,0.185]
[1764083499150,0.1842,2885.0,2883.9,0.72559411]
[1764083499453,0.1842,2885.0,2883.8,0.1706]
[1764083499825,4.1194045,2885.0,2884.0,0.72559411]
[1764083500074,4.1194045,2885.0,2883.4,0.4741]
[1764083500075,4.5249085,2885.0,2883.3,0.1706]
[1764083500264,4.5249085,2885.0,2883.2,6.93673694]
[1764083500265,0.405504,2884.9,2883.2,6.93673694]
[1764083500559,0.469,2884.9,2883.3,0.90339411]
[1764083500718,0.232,2884.8,2883.3,0.1778]
[1764083500917,0.232,2884.8,2883.2,3.46836847]
[1764083500918,0.405504,2884.7,2883.2,3.46836847]
[1764083501138,0.405504,2884.7,2883.2,6.93673694]
[1764083501139,0.469,2884.7,2883.2,6.93673694]
[1764083501321,0.469,2884.7,2883.2,10.40510541]
[1764083501532,6.9333703,2884.6,2883.2,6.93673694]
[1764083501731,6.9333703,2884.6,2883.2,3.46836847]
[1764083501920,0.469,2884.5,2883.2,10.40510541]
[1764083502121,0.469,2884.5,2883.1,0.1696]
[1764083502342,0.469,2884.5,2883.1,7.10656088]
[1764083502550,0.469,2884.5,2883.2,0.72559411]
[1764083503626,3.93580533,2884.5,2883.3,6.93649636]
[1764083503826,0.405504,2884.4,2883.1,0.1696]
[1764083504031,0.469,2884.4,2883.2,1.23437779]
[1764083504346,0.469,2884.4,2883.2,1.19969411]
[1764083504522,0.1842,2883.3,2881.3,3.14803]
[1764083504727,0.469,2884.4,2881.7,7.5586004]
[1764083504954,0.469,2884.4,2881.9,2.7053]
[1764083504955,0.405504,2884.2,2881.9,2.7053]
[1764083505167,0.405504,2884.0,2882.0,0.7071]
[1764083505327,0.233,2884.3,2882.1,0.4741]
[1764083505328,0.469,2883.9,2882.1,0.4741]
[1764083505673,0.233,2884.3,2882.5,0.405504]
[1764083505957,3.46542353,2885.7,2882.9,0.72559411]
[1764083505958,0.233,2884.7,2882.9,0.72559411]
[1764083506125,3.69957676,2884.7,2883.0,0.7071]
[1764083506332,3.69957676,2884.7,2883.0,0.4741]
[1764083506333,0.6532,2884.6,2883.0,0.4741]
[1764083506549,4.11991394,2884.6,2883.1,0.233]
[1764083506758,0.6532,2884.6,2883.1,0.7071]
[1764083507061,0.6532,2884.6,2883.2,0.1696]
[1764083507277,0.1842,2884.6,2883.2,0.6437]
[1764083507429,0.469,2884.5,2883.2,0.6437]
[1764083507631,6.93385106,2884.4,2883.3,3.46824818]
[1764083507859,3.46692553,2884.4,2883.3,6.93649636]
[1764083508163,0.469,2884.3,2883.3,6.93649636]
[1764083508656,0.469,2884.3,2883.3,10.40474454]
[1764083508953,0.469,2884.3,2883.3,6.93649636]
[1764083509160,0.1842,2884.6,2883.3,10.40474454]
[1764083509331,0.72559411,2884.8,2883.4,1.23437538]
[1764083509528,3.46668515,2884.6,2883.5,6.93601524]
[1764083509755,0.469,2884.8,2883.5,7.16901524]
[1764083509960,0.469,2884.8,2883.5,10.63702286]
[1764083510282,0.469,2884.8,2883.6,0.72559411]
[1764083510565,0.4745,2886.0,2884.7,0.1778]
[1764083510727,0.6587,2886.4,2884.9,0.405504]
[1764083510928,0.1862,2886.7,2884.9,0.405504]
[1764083511133,4.12490527,2886.7,2885.1,0.405504]
[1764083511354,7.58911054,2886.7,2885.2,0.233]
[1764083511549,6.9288065,2886.5,2885.4,0.72559411]
[1764083511840,14.090613,2886.5,2884.7,0.4108]
[1764083512044,1.60559811,2886.4,2884.6,0.233]
[1764083512275,1.60559811,2886.4,2884.5,0.72559411]
[1764083512476,0.405504,2886.2,2884.5,0.72559411]
[1764083512661,1.13109811,2886.2,2884.0,0.1778]
[1764083512863,0.405504,2886.0,2884.1,0.72559411]
[1764083513069,0.233,2885.9,2884.1,0.95859411]
[1764083513376,0.405504,2885.8,2884.2,0.233]
[1764083513605,0.405504,2885.5,2884.0,0.233]
[1764083513808,0.405504,2885.5,2883.0,3.63820908]
[1764083514009,0.405504,2885.3,2883.1,0.233]
[1764083514177,0.233,2885.2,2883.1,0.95859411]
[1764083514370,0.891,2885.2,2883.1,1.42049411]
[1764083514570,0.891,2885.2,2883.2,0.49658368]
[1764083514571,0.405504,2885.1,2883.2,0.49658368]
[1764083514795,0.4745,2885.1,2883.3,0.405504]
[1764083515199,0.4745,2885.1,2883.4,0.4619]
[1764083515701,6.932409,2885.0,2883.7,0.72559411]
[1764083516303,6.932409,2885.0,2883.7,1.18749411]
[1764083516471,6.932409,2885.0,2883.7,0.72559411]
[1764083516472,0.4745,2884.9,2883.7,0.72559411]
[1764083516672,0.4745,2884.9,2883.8,0.233]
[1764083516872,3.46608557,2885.1,2883.8,0.4619]
[1764083517081,10.3982555,2885.1,2883.9,0.233]
[1764083517280,0.4745,2885.0,2883.7,0.72559411]
[1764083517480,0.4745,2885.0,2883.8,0.233]
[1764083517715,6.9326493,2884.9,2883.8,3.69964032]
[1764083517891,0.4745,2884.8,2883.7,0.232]
[1764083518673,6.9326493,2884.9,2883.7,0.7024]
[1764083518674,3.46632465,2884.9,2883.7,0.7024]
[1764083518906,3.46620332,2885.1,2883.8,0.4704]
[1764083519220,6.93240664,2885.1,2883.8,0.4704]
[1764083519382,0.4734,2885.0,2883.8,0.4704]
[1764083519586,0.4734,2885.0,2883.7,0.232]
[1764083519784,0.4165,2885.2,2883.9,0.72559411]
[1764083519990,4.35598336,2885.2,2883.9,0.72559411]
[1764083520207,7.82126672,2885.2,2883.9,0.72559411]
[1764083520418,0.4734,2885.1,2883.9,0.72559411]
[1764083520621,1.19899411,2885.1,2883.0,0.1696]
[1764083520780,0.405504,2885.0,2883.1,3.93888877]
[1764083520977,0.405504,2884.8,2883.2,0.95759411]
[1764083521190,0.4734,2884.7,2883.0,3.6382]
[1764083521421,0.405504,2884.6,2883.0,3.6382]
[1764083521629,0.637504,2884.6,2883.0,0.232]
[1764083521793,1.13109811,2884.4,2882.9,0.1696]
[1764083522132,1.13109811,2884.4,2883.0,0.4704]
[1764083522333,0.405504,2884.2,2882.9,0.89519411]
[1764083522501,0.4734,2884.1,2882.9,0.1696]
[1764083522699,0.405504,2884.0,2882.8,0.001]
[1764083523022,0.637504,2884.0,2882.8,0.001]
[1764083523223,0.405504,2883.8,2882.8,0.001]
[1764083523522,0.6573,2883.9,2882.8,0.001]
[1764083523721,0.1839,2884.3,2883.0,6.93721816]
[1764083523926,0.1835,2885.2,2883.8,0.1696]
[1764083523927,7.11550634,2885.2,2883.8,0.1696]
[1764083524100,0.4734,2885.1,2883.8,0.1696]
[1764083524303,1.19899411,2885.1,2883.8,0.4016]
[1764083524505,0.002,2884.9,2883.8,0.872]
[1764083524745,0.002,2884.9,2883.9,0.232]
[1764083525026,0.002,2884.9,2883.9,0.7024]
[1764083525227,0.002,2884.9,2883.9,0.232]
[1764083525433,0.002,2884.9,2884.0,0.4704]
[1764083525724,0.002,2884.9,2884.2,0.72559411]
[1764083526134,0.002,2884.9,2884.2,1.19599411]
[1764083526446,0.002,2884.9,2884.3,0.232]
[1764083526646,0.002,2884.9,2884.3,0.7024]
[1764083527634,0.002,2884.9,2884.2,0.72559411]
[1764083527832,0.002,2884.9,2884.5,6.93361066]
[1764083528042,0.002,2884.9,2884.6,0.232]
[1764083528722,0.002,2884.9,2884.7,0.4704]
[1764083528928,0.002,2884.9,2884.6,0.232]
[1764083529111,0.002,2884.9,2884.5,0.72559411]
[1764083529112,0.1859,2884.9,2884.5,0.232]
[1764083529447,0.002,2884.9,2884.2,3.46710898]
[1764083529644,0.1859,2884.9,2884.3,0.72559411]
[1764083530026,3.46644481,2884.8,2884.1,4.19286837]
[1764083530348,0.1859,2884.9,2884.1,3.69927426]
[1764083530552,0.002,2884.9,2884.2,0.4704]
[1764083530847,0.002,2884.9,2884.3,0.405504]
[1764083531048,0.002,2884.9,2884.4,0.4704]
[1764083531220,0.002,2884.9,2884.5,1.13109811]
[1764083531417,0.002,2884.9,2884.6,0.232]
[1764083531749,0.002,2884.9,2884.6,0.7024]
[1764083531950,0.002,2884.9,2884.8,4.19203892]
[1764083532151,0.002,2884.9,2884.8,4.42403892]
[1764083532384,0.002,2884.9,2884.8,4.89443892]
[1764083532650,0.002,2884.9,2884.3,0.4704]
[1764083532821,0.002,2884.9,2884.6,0.232]
[1764083533349,0.002,2884.9,2884.7,0.4704]
[1764083533844,0.002,2884.9,2884.6,0.232]
[1764083534050,0.002,2884.9,2884.7,6.93312996]
[1764083534224,0.002,2884.9,2884.4,0.72559411]
[1764083534225,0.002,2884.9,2884.5,3.46674015]
[1764083534426,0.1859,2884.9,2884.0,0.4704]
[1764083534750,0.002,2884.9,2884.1,7.1655723]
[1764083535251,0.002,2884.9,2884.1,10.63285845]
[1764083535450,0.6593,2884.9,2883.8,0.1696]
[1764083535649,0.1839,2883.9,2882.9,0.001]
[1764083535950,10.4033013,2883.7,2882.9,0.001]
[1764083536366,0.878904,2883.6,2882.9,0.001]
[1764083536842,0.4734,2883.5,2882.9,0.001]
[1764083537450,0.405504,2883.4,2882.9,0.001]
[1764083537875,0.405504,2883.2,2882.8,0.001]
[1764083538040,8.06855691,2882.9,2882.5,0.001]
[1764083538364,0.95659411,2882.8,2882.5,0.001]
[1764083538564,1.42999411,2882.8,2882.5,0.001]
[1764083538748,0.878904,2882.7,2882.5,0.001]
[1764083539061,0.4734,2882.7,2882.5,0.001]
[1764083539634,0.878904,2882.7,2882.5,0.001]
[1764083539931,5.07346817,2882.7,2882.5,0.001]
[1764083540580,4.66796417,2882.7,2882.5,0.001]
[1764083540869,3.6680523,2883.3,2882.5,0.001]
[1764083541038,7.1363046,2883.3,2882.5,0.001]
[1764083541233,0.4896,2883.2,2882.5,0.001]
[1764083542064,7.16797754,2883.1,2882.5,0.001]
[1764083542265,1.13109811,2883.0,2882.5,0.001]
[1764083542473,1.62069811,2883.0,2882.5,0.001]
[1764083542671,0.405504,2882.8,2881.0,0.1696]
[1764083542854,0.405504,2882.8,2881.1,0.72559411]
[1764083543056,0.4896,2882.7,2881.1,1.20049411]
[1764083543261,0.4896,2882.7,2881.2,0.4749]
[1764083543457,0.72559411,2883.0,2881.2,0.4749]
[1764083543672,0.72559411,2883.0,2882.5,0.001]
[1764083543673,0.895104,2882.9,2882.5,0.001]
[1764083543880,0.72559411,2883.0,2882.5,0.001]
[1764083544077,3.46884972,2882.8,2882.5,0.001]
[1764083544245,4.19425362,2883.0,2882.5,0.001]
[1764083544443,0.231,2883.1,2882.5,0.001]
[1764083544756,3.46837427,2883.2,2882.5,0.001]
[1764083544940,6.93674854,2883.2,2882.5,0.001]
[1764083545145,0.4896,2883.1,2882.5,0.001]
[1764083545645,6.93674854,2883.2,2882.5,0.001]
[1764083546045,10.40512281,2883.2,2882.5,0.001]
[1764083546280,0.4896,2883.1,2882.5,0.001]
[1764083546448,0.231,2883.6,2882.5,0.001]
[1764083546651,3.69900751,2883.6,2882.5,0.5105921]
[1764083546994,7.16701502,2883.6,2882.5,0.4759]
[1764083547175,3.69900751,2883.6,2882.5,0.4759]
[1764083547884,7.16701502,2883.6,2882.5,0.4759]
[1764083548104,7.16701502,2883.6,2882.6,6.9381808]
[1764083548105,0.231,2883.6,2882.6,6.9381808]
[1764083548447,0.231,2884.3,2882.7,0.72559411]
[1764083548599,6.93288962,2884.8,2883.0,0.405504]
[1764083548879,0.1859,2884.9,2882.7,1.23518381]
[1764083548880,3.88327176,2884.9,2883.2,0.405504]
[1764083549080,7.16574352,2884.9,2883.2,0.405504]
[1764083549381,7.16574352,2884.9,2883.4,0.405504]
[1764083549579,0.233,2884.9,2883.6,0.405504]
[1764083549778,3.69934392,2884.9,2883.7,0.4749]
[1764083549982,0.233,2884.9,2883.7,0.4749]
[1764083550181,0.002,2884.9,2883.9,0.72559411]
[1764083550382,0.4896,2884.8,2883.2,0.4749]
[1764083550551,0.7206,2884.8,2883.4,0.72559411]
[1764083551083,0.405504,2884.6,2883.2,3.46836432]
[1764083551296,0.405504,2884.6,2882.5,0.7069]
[1764083551611,0.405504,2884.4,2882.6,3.4690904]
[1764083551778,0.405504,2884.2,2882.5,0.4759]
[1764083551986,1.13109811,2883.8,2882.5,0.001]
[1764083552187,0.405504,2883.4,2882.5,0.001]
[1764083552581,3.46800762,2883.5,2882.5,0.001]
[1764083552813,0.4896,2883.3,2882.5,0.001]
[1764083553019,10.40402286,2883.5,2882.5,0.001]
[1764083553020,3.46800762,2883.5,2882.5,0.001]
[1764083553502,0.231,2883.7,2882.5,0.001]
[1764083553503,0.231,2883.7,2882.5,0.4759]
[1764083553703,0.4896,2884.4,2882.7,0.405504]
[1764083553910,0.7226,2884.9,2883.6,0.1778]
[1764083554112,7.65525266,2884.9,2883.7,6.9355342]
[1764083554314,0.4896,2884.8,2883.4,0.231]
[1764083554496,0.4896,2884.8,2883.3,0.72559411]
[1764083554696,0.405504,2884.7,2883.2,0.1778]
[1764083555307,0.4896,2884.6,2883.2,0.1778]
[1764083555520,0.405504,2884.5,2882.5,0.001]
[1764083555683,0.231,2884.4,2882.6,6.93817223]
[1764083555885,0.405504,2884.2,2882.7,0.72559411]
[1764083556300,0.405504,2884.0,2882.8,0.72559411]
[1764083556695,7.6239723,2884.1,2882.8,0.72559411]
[1764083557108,11.09125845,2884.1,2882.8,0.72559411]
[1764083558020,3.46728615,2884.1,2882.9,0.4749]
[1764083558175,6.93419314,2884.3,2883.1,0.72559411]
[1764083558379,7.42379314,2884.3,2883.1,0.72559411]
[1764083558599,6.93419314,2884.3,2883.2,0.1778]
[1764083558801,3.46686811,2884.5,2883.3,0.4749]
[1764083559313,3.66651916,2884.6,2883.3,0.4749]
[1764083559504,0.4896,2884.7,2883.3,0.4749]
[1764083559505,3.46656498,2884.7,2883.3,0.4749]
[1764083560009,6.93312996,2884.7,2883.3,0.4749]
[1764083560218,0.4896,2884.6,2883.5,0.72559411]
[1764083560418,0.4896,2884.6,2883.6,0.231]
[1764083560787,6.93312996,2884.7,2883.5,0.4749]
[1764083560994,0.4896,2884.5,2883.4,0.72559411]
[1764083561496,0.405504,2884.4,2882.7,0.72559411]
[1764083561693,0.231,2884.3,2882.8,0.231]
[1764083561895,0.7206,2884.3,2882.8,0.7059]
[1764083562318,0.7206,2884.3,2883.0,0.72559411]
[1764083562319,3.46716593,2884.2,2883.0,0.72559411]
[1764083562690,0.1998,2884.1,2883.0,0.72559411]
[1764083562907,0.1998,2884.1,2883.0,1.20049411]
[1764083563306,0.1998,2884.1,2883.1,0.1778]
[1764083563606,3.46695602,2884.4,2883.2,0.44018768]
[1764083563806,0.1998,2884.5,2883.1,0.6527]
[1764083564117,0.4896,2884.4,2883.1,0.1778]
[1764083564278,3.46704573,2884.3,2883.2,1.20049411]
[1764083564482,0.4896,2884.4,2883.2,1.20049411]
[1764083564810,7.42349206,2884.4,2883.2,1.20049411]
[1764083564995,7.42349206,2884.4,2883.2,0.72559411]
[1764083564996,0.4896,2884.3,2883.2,0.72559411]
[1764083565191,3.66662336,2884.5,2883.3,0.4749]
[1764083565717,3.66664267,2884.5,2883.3,0.4749]
[1764083565888,3.46684267,2884.5,2883.3,0.4749]
[1764083566083,3.69773781,2884.6,2883.3,0.4749]
[1764083566294,7.16441144,2884.6,2883.5,0.72559411]
[1764083566514,0.4896,2884.5,2883.5,0.72559411]
[1764083566701,0.4896,2884.5,2883.4,3.4681279]
[1764083566702,0.4896,2884.5,2883.4,0.231]
[1764083567013,0.4896,2884.5,2883.2,0.72559411]
[1764083567014,1.21519411,2884.5,2883.2,0.72559411]
[1764083567218,1.21519411,2884.5,2883.2,0.95659411]
[1764083567384,0.4896,2884.4,2883.2,0.95659411]
[1764083567586,0.4896,2884.4,2883.1,4.37188288]
[1764083568001,0.4896,2884.4,2883.1,7.84037165]
[1764083568217,0.4888,2884.4,2883.1,7.84037165]
[1764083568516,6.93409146,2884.3,2883.1,7.84037165]
[1764083568719,0.002,2884.7,2883.3,0.405504]
[1764083569028,0.002,2884.7,2884.6,0.1363]
[1764083569229,0.002,2884.7,2884.3,0.231]
[1764083569596,3.46668515,2884.6,2883.7,0.3673]
[1764083569801,0.1998,2883.8,2882.6,0.1778]
[1764083570047,0.231,2883.7,2882.6,0.1778]
[1764083570242,0.231,2883.7,2882.8,3.46984972]
[1764083570452,0.4882,2884.0,2882.8,1.18799411]
[1764083570664,0.1983,2883.9,2882.8,0.001]
[1764083570862,0.1983,2883.9,2882.8,0.4624]
[1764083571066,7.16584574,2884.0,2882.9,0.4614]
[1764083571253,0.1983,2883.9,2882.9,0.4614]
[1764083572559,0.231,2884.0,2883.0,6.93721816]
[1764083572857,7.13336524,2883.9,2883.0,6.93721816]
[1764083573059,7.13336524,2883.9,2883.1,0.1363]
[1764083573060,0.1983,2883.9,2883.1,0.1363]
[1764083573369,3.69841431,2884.0,2883.1,0.1363]
[1764083573671,0.231,2884.4,2883.2,0.4614]
[1764083574475,3.46704573,2884.3,2883.2,0.4614]
[1764083574657,6.93409146,2884.3,2883.3,0.72559411]
[1764083574954,0.231,2884.6,2883.3,1.18699411]
[1764083575154,0.231,2884.6,2883.3,0.72559411]
[1764083575155,0.7192,2884.6,2883.3,0.72559411]
[1764083575477,0.405504,2884.5,2883.2,0.72559411]
[1764083575667,0.4882,2884.4,2883.2,0.72559411]
[1764083576064,6.93515291,2884.7,2883.2,0.72559411]
[1764083576268,0.4882,2884.5,2883.2,0.72559411]
[1764083576474,6.93385106,2884.4,2883.4,0.72559411]
[1764083576650,3.46692553,2884.4,2883.4,0.72559411]
[1764083577184,3.46681871,2884.5,2883.4,0.72559411]
[1764083577372,3.69772414,2884.6,2883.5,0.4614]
[1764083577689,7.65264828,2884.6,2883.4,0.95659411]
[1764083577984,0.4882,2884.5,2883.4,0.72559411]
[1764083578286,0.002,2884.7,2883.5,0.4614]
[1764083578287,3.46857241,2884.7,2883.5,0.4614]
[1764083578475,3.69957241,2884.7,2883.6,6.93577472]
[1764083578651,3.69960145,2884.7,2883.6,10.40366208]
[1764083579153,0.4836,2884.6,2883.6,0.72559411]
[1764083579485,0.231,2884.5,2883.6,0.72559411]
[1764083579653,0.231,2884.5,2883.4,7.66184991]
[1764083579849,0.4836,2884.4,2883.4,0.72559411]
[1764083580050,6.9352029,2884.7,2883.4,0.72559411]
[1764083580250,0.002,2884.7,2883.5,0.4831]
[1764083580477,0.002,2884.7,2883.9,6.93505322]
[1764083580784,0.002,2884.7,2884.0,0.95659411]
[1764083580998,0.002,2884.7,2883.7,0.4831]
[1764083581216,0.002,2884.6,2883.9,0.405504]
[1764083581409,0.002,2884.6,2884.0,0.231]
[1764083581612,0.002,2884.6,2884.1,0.231]
[1764083581917,0.4836,2884.5,2883.1,0.1363]
[1764083582290,0.231,2884.4,2883.1,4.0878046]
[1764083582497,6.93433186,2884.2,2883.1,0.1363]
[1764083582710,10.40149779,2884.2,2882.6,0.4088]
[1764083582910,0.4836,2884.1,2882.8,3.46984972]
[1764083583115,0.4836,2884.1,2882.9,0.72559411]
[1764083583300,0.405504,2884.0,2882.8,0.001]
[1764083583678,0.405504,2883.8,2882.8,0.001]
[1764083583878,0.231,2883.7,2882.8,0.001]
[1764083584090,0.4836,2883.6,2882.8,0.001]
[1764083584497,10.40402286,2883.5,2882.8,0.001]
[1764083584780,6.93601524,2883.5,2882.8,0.001]
[1764083584976,0.4836,2883.4,2882.8,0.001]
[1764083585378,3.65892661,2883.9,2882.8,0.4841]
[1764083585590,0.889104,2883.8,2882.8,0.001]
[1764083586113,0.4836,2883.7,2882.8,0.001]
[1764083586314,0.1914,2883.9,2882.8,0.51878849]
[1764083586607,3.46728615,2884.1,2883.0,0.72559411]
[1764083586788,3.95088615,2884.1,2883.0,0.72559411]
[1764083586989,0.4836,2884.1,2883.1,0.1363]
[1764083587708,0.4836,2884.5,2883.1,0.6194]
[1764083587890,0.231,2884.4,2883.1,0.6194]
[1764083588091,3.69792553,2884.4,2883.2,0.4831]
[1764083588287,0.4836,2884.3,2883.2,0.4831]
[1764083588486,0.4836,2884.3,2883.1,0.1363]
[1764083588810,0.4836,2884.3,2882.8,0.4841]
[1764083588811,6.93433186,2884.2,2882.8,0.001]
[1764083588994,10.40149779,2884.2,2883.0,0.72559411]
[1764083589325,0.4836,2884.1,2883.0,0.72559411]
[1764083589725,0.4836,2884.1,2883.1,0.1363]
[1764083589925,6.93433186,2884.2,2883.1,0.6194]
[1764083590097,3.46716593,2884.2,2883.2,0.4831]
[1764083590294,3.69796245,2884.4,2883.3,0.03468248]
[1764083590640,3.69793723,2884.4,2883.5,6.93601524]
[1764083590991,7.16487446,2884.4,2883.5,3.95110762]
[1764083591238,7.16487446,2884.4,2883.2,3.46836847]
[1764083591239,7.64847446,2884.4,2883.2,3.46836847]
[1764083591389,7.16487446,2884.4,2883.3,1.20869411]
[1764083591594,0.002,2884.6,2884.3,0.157]
[1764083592227,0.0012,2884.6,2884.3,0.157]
[1764083592391,3.46788515,2884.6,2884.0,0.157]
[1764083592592,0.0012,2884.6,2884.0,0.157]
[1764083593037,0.0012,2884.6,2884.0,7.09177181]
[1764083593339,0.0012,2884.6,2884.1,1.20869411]
[1764083593842,0.0012,2884.6,2884.1,0.72559411]
[1764083593990,0.4848,2884.6,2884.1,0.72559411]
[1764083594196,0.231,2884.5,2883.1,3.83578877]
[1764083594394,0.231,2884.5,2883.1,7.30427754]
[1764083594395,0.7146,2884.5,2883.1,7.30427754]